[Event "Titled Tuesday Blitz April 18 Late 2023"]
[White "Davidson, Kevin"]
[Black "Eisa Mohmood, Alkhoori"]
[WhiteFideId "2056810"]
[BlackFideId "9316116"]
[WhiteElo "2151"]
[BlackElo "1310"]
[Result "1-0"]
[Round "02"]
[TimeControl "180+2"]
[Date "2023.04.18"]
[WhiteClock "0:00:30"]
[BlackClock "0:00:08"]

1. e4 {[%clk 0:03:00]}  c5 {[%clk 0:02:58]} 2. Nf3 {[%clk 0:03:00]}  d6 {[%clk 0:02:57]} 3. d4 {[%clk 0:03:00]}  cxd4 {[%clk 0:02:58]} 4. Nxd4 {[%clk 0:03:01]}  Nf6 {[%clk 0:02:58]} 5. Nc3 {[%clk 0:03:01]}  g6 {[%clk 0:02:53]} 6. Be3 {[%clk 0:03:00]}  Bg7 {[%clk 0:02:52]} 7. f3 {[%clk 0:03:01]}  O-O {[%clk 0:02:52]} 8. Qd2 {[%clk 0:03:01]}  Nc6 {[%clk 0:02:52]} 9. O-O-O {[%clk 0:03:00]}  d5 {[%clk 0:02:52]} 10. Qe1 {[%clk 0:03:00]}  e5 {[%clk 0:02:47]} 11. Nxc6 {[%clk 0:03:00]}  bxc6 {[%clk 0:02:48]} 12. exd5 {[%clk 0:03:00]}  cxd5 {[%clk 0:02:49]} 13. Bg5 {[%clk 0:02:59]}  Be6 {[%clk 0:02:48]} 14. Bc4 {[%clk 0:02:59]}  Qc7 {[%clk 0:02:39]} 15. Bxf6 {[%clk 0:02:52]}  dxc4 {[%clk 0:02:17]} 16. Bxg7 {[%clk 0:02:48]}  Kxg7 {[%clk 0:02:14]} 17. Nd5 {[%clk 0:02:45]}  Qb8 {[%clk 0:01:35]} 18. Qa5 {[%clk 0:02:25]}  Rd8 {[%clk 0:01:30]} 19. Nc7 {[%clk 0:02:15]}  c3 {[%clk 0:01:03]} 20. bxc3 {[%clk 0:01:51]}  Qb6 {[%clk 0:00:55]} 21. Qxb6 {[%clk 0:01:49]}  axb6 {[%clk 0:00:56]} 22. Nxa8 {[%clk 0:01:50]}  Rxa8 {[%clk 0:00:56]} 23. Rhe1 {[%clk 0:01:42]}  Kf6 {[%clk 0:00:53]} 24. Rd6 {[%clk 0:01:39]}  b5 {[%clk 0:00:48]} 25. Rb6 {[%clk 0:01:33]}  Ra5 {[%clk 0:00:45]} 26. a3 {[%clk 0:01:28]}  Kf5 {[%clk 0:00:39]} 27. Kb2 {[%clk 0:01:22]}  h5 {[%clk 0:00:39]} 28. Re4 {[%clk 0:01:13]}  Bd5 {[%clk 0:00:31]} 29. Rb4 {[%clk 0:01:12]}  Bc4 {[%clk 0:00:30]} 30. a4 {[%clk 0:01:04]}  Rxa4 {[%clk 0:00:27]} 31. Rxa4 {[%clk 0:01:04]}  bxa4 {[%clk 0:00:28]} 32. Rb4 {[%clk 0:00:56]}  Bf1 {[%clk 0:00:29]} 33. g3 {[%clk 0:00:54]}  Bg2 {[%clk 0:00:28]} 34. f4 {[%clk 0:00:53]}  f6 {[%clk 0:00:27]} 35. fxe5 {[%clk 0:00:49]}  fxe5 {[%clk 0:00:26]} 36. Rxa4 {[%clk 0:00:48]}  e4 {[%clk 0:00:25]} 37. Kc1 {[%clk 0:00:48]}  e3 {[%clk 0:00:20]} 38. Kd1 {[%clk 0:00:48]}  Be4 {[%clk 0:00:14]} 39. Rxe4 {[%clk 0:00:31]}  Kxe4 {[%clk 0:00:13]} 40. Ke2 {[%clk 0:00:31]}  g5 {[%clk 0:00:11]} 41. c4 {[%clk 0:00:29]}  Kd4 {[%clk 0:00:06]} 42. c5 {[%clk 0:00:29]}  Kxc5 {[%clk 0:00:07]} 43. Kxe3 {[%clk 0:00:29]}  h4 {[%clk 0:00:04]} 44. g4 {[%clk 0:00:28]}  Kc4 {[%clk 0:00:04]} 45. Ke4 {[%clk 0:00:27]}  Kc3 {[%clk 0:00:04]} 46. Kf5 {[%clk 0:00:28]}  Kxc2 {[%clk 0:00:04]} 47. Kxg5 {[%clk 0:00:28]}  h3 {[%clk 0:00:04]} 48. Kh4 {[%clk 0:00:29]}  Kd3 {[%clk 0:00:02]} 49. Kxh3 {[%clk 0:00:29]}  Kd4 {[%clk 0:00:03]} 50. Kh4 {[%clk 0:00:29]}  Ke5 {[%clk 0:00:04]} 51. Kg5 {[%clk 0:00:30]}  Ke6 {[%clk 0:00:05]} 52. Kg6 {[%clk 0:00:30]}  Ke7 {[%clk 0:00:05]} 53. Kg7 {[%clk 0:00:31]}  Ke6 {[%clk 0:00:06]} 54. g5 {[%clk 0:00:31]}  Kf5 {[%clk 0:00:06]} 55. g6 {[%clk 0:00:31]}  Kg5 {[%clk 0:00:06]} 56. Kf7 {[%clk 0:00:31]}  Kh4 {[%clk 0:00:07]} 57. g7 {[%clk 0:00:31]}  Kh3 {[%clk 0:00:08]} 58. g8=Q {[%clk 0:00:32]}  Kh4 {[%clk 0:00:07]} 59. Kf6 {[%clk 0:00:31]}  Kh5 {[%clk 0:00:08]} 60. Qg5# {[%clk 0:00:30]} 1-0


[Site "https://www.chess.com"]

[Event "Titled Tuesday Blitz April 18 Late 2023"]
[White "micke12a"]
[Black "Burke, Paul"]
[BlackFideId "2605767"]
[WhiteElo "2368"]
[BlackElo "1908"]
[Result "1-0"]
[Round "02"]
[TimeControl "180+2"]
[Date "2023.04.18"]
[WhiteClock "0:00:58"]
[BlackClock "0:00:35"]

1. e4 {[%clk 0:02:58]}  e5 {[%clk 0:02:48]} 2. Nf3 {[%clk 0:02:58]}  Nc6 {[%clk 0:02:47]} 3. Bc4 {[%clk 0:02:57]}  Be7 {[%clk 0:02:47]} 4. O-O {[%clk 0:02:56]}  Nf6 {[%clk 0:02:47]} 5. Re1 {[%clk 0:02:57]}  O-O {[%clk 0:02:45]} 6. d3 {[%clk 0:02:57]}  d6 {[%clk 0:02:45]} 7. c3 {[%clk 0:02:56]}  Be6 {[%clk 0:02:43]} 8. Bb5 {[%clk 0:02:55]}  Bg4 {[%clk 0:02:40]} 9. Nbd2 {[%clk 0:02:54]}  d5 {[%clk 0:02:38]} 10. h3 {[%clk 0:02:50]}  Bh5 {[%clk 0:02:34]} 11. exd5 {[%clk 0:02:36]}  Qxd5 {[%clk 0:02:21]} 12. Bc4 {[%clk 0:02:19]}  Qd8 {[%clk 0:02:21]} 13. Nf1 {[%clk 0:02:10]}  e4 {[%clk 0:02:14]} 14. dxe4 {[%clk 0:02:04]}  Qxd1 {[%clk 0:02:08]} 15. Rxd1 {[%clk 0:02:05]}  Nxe4 {[%clk 0:02:08]} 16. Bd5 {[%clk 0:02:03]}  Nf6 {[%clk 0:02:02]} 17. Bxc6 {[%clk 0:01:53]}  bxc6 {[%clk 0:02:00]} 18. g4 {[%clk 0:01:53]}  Bg6 {[%clk 0:01:52]} 19. Ne5 {[%clk 0:01:53]}  Be4 {[%clk 0:01:43]} 20. Ng3 {[%clk 0:01:44]}  Bd5 {[%clk 0:01:18]} 21. Nf5 {[%clk 0:01:33]}  Bd6 {[%clk 0:01:14]} 22. Nd3 {[%clk 0:01:14]}  Bf3 {[%clk 0:01:04]} 23. Re1 {[%clk 0:01:12]}  Rfe8 {[%clk 0:00:59]} 24. Bg5 {[%clk 0:01:08]}  Ne4 {[%clk 0:00:48]} 25. Be3 {[%clk 0:01:02]}  g6 {[%clk 0:00:41]} 26. Nd4 {[%clk 0:00:58]}  c5 {[%clk 0:00:35]} 27. Nxf3 {[%clk 0:00:58]} 1-0


[Site "https://www.chess.com"]

[Event "Titled Tuesday Blitz April 18 Late 2023"]
[White "Carlsen, Magnus"]
[Black "Llorente Zaro, Alfonso"]
[WhiteFideId "1503014"]
[BlackFideId "2254131"]
[WhiteElo "2852"]
[BlackElo "2485"]
[Result "1-0"]
[Round "03"]
[TimeControl "180+2"]
[Date "2023.04.18"]
[WhiteClock "0:01:07"]
[BlackClock "0:00:02"]

1. f4 {[%clk 0:02:50]}  d5 {[%clk 0:02:57]} 2. Nf3 {[%clk 0:02:49]}  g6 {[%clk 0:02:55]} 3. d3 {[%clk 0:02:45]}  Bg7 {[%clk 0:02:53]} 4. e4 {[%clk 0:02:45]}  dxe4 {[%clk 0:02:49]} 5. dxe4 {[%clk 0:02:37]}  Qxd1+ {[%clk 0:02:50]} 6. Kxd1 {[%clk 0:02:38]}  Nc6 {[%clk 0:02:48]} 7. c3 {[%clk 0:02:37]}  e5 {[%clk 0:02:36]} 8. Na3 {[%clk 0:02:36]}  Be6 {[%clk 0:02:23]} 9. Bc4 {[%clk 0:02:33]}  Nf6 {[%clk 0:02:16]} 10. Bxe6 {[%clk 0:02:32]}  fxe6 {[%clk 0:02:17]} 11. Re1 {[%clk 0:02:30]}  O-O-O+ {[%clk 0:02:11]} 12. Kc2 {[%clk 0:02:25]}  Rhf8 {[%clk 0:02:09]} 13. Nc4 {[%clk 0:02:25]}  Nd7 {[%clk 0:01:48]} 14. Ng5 {[%clk 0:02:22]}  Rde8 {[%clk 0:01:42]} 15. Nxh7 {[%clk 0:02:16]}  Rh8 {[%clk 0:01:42]} 16. Ng5 {[%clk 0:02:16]}  Rxh2 {[%clk 0:01:43]} 17. Re2 {[%clk 0:02:16]}  Bh6 {[%clk 0:01:34]} 18. Nf3 {[%clk 0:02:12]}  Rh1 {[%clk 0:01:32]} 19. Ncxe5 {[%clk 0:02:08]}  Ndxe5 {[%clk 0:01:32]} 20. fxe5 {[%clk 0:02:07]}  Rd8 {[%clk 0:01:28]} 21. Re1 {[%clk 0:01:28]}  Rxe1 {[%clk 0:01:25]} 22. Nxe1 {[%clk 0:01:29]}  Bxc1 {[%clk 0:01:24]} 23. Rxc1 {[%clk 0:01:30]}  Nxe5 {[%clk 0:01:24]} 24. Nf3 {[%clk 0:01:30]}  Nxf3 {[%clk 0:01:11]} 25. gxf3 {[%clk 0:01:31]}  Rf8 {[%clk 0:01:11]} 26. Rf1 {[%clk 0:01:30]}  Kd7 {[%clk 0:01:11]} 27. Kd3 {[%clk 0:01:31]}  e5 {[%clk 0:01:09]} 28. b4 {[%clk 0:01:29]}  Ke6 {[%clk 0:01:09]} 29. Ke3 {[%clk 0:01:28]}  Kf6 {[%clk 0:01:05]} 30. Rh1 {[%clk 0:01:28]}  Rf7 {[%clk 0:01:03]} 31. a4 {[%clk 0:01:27]}  c6 {[%clk 0:00:38]} 32. a5 {[%clk 0:01:25]}  a6 {[%clk 0:00:38]} 33. Rh8 {[%clk 0:01:24]}  Rd7 {[%clk 0:00:34]} 34. Re8 {[%clk 0:01:22]}  Rh7 {[%clk 0:00:27]} 35. Rd8 {[%clk 0:01:22]}  Ke6 {[%clk 0:00:25]} 36. Rb8 {[%clk 0:01:20]}  Rd7 {[%clk 0:00:24]} 37. Rf8 {[%clk 0:01:17]}  Rh7 {[%clk 0:00:20]} 38. Kd3 {[%clk 0:01:16]}  Ke7 {[%clk 0:00:13]} 39. Rg8 {[%clk 0:01:15]}  Kf6 {[%clk 0:00:10]} 40. Kc4 {[%clk 0:01:14]}  Rh3 {[%clk 0:00:09]} 41. Rb8 {[%clk 0:01:11]}  Kg5 {[%clk 0:00:07]} 42. Rxb7 {[%clk 0:01:11]}  Rxf3 {[%clk 0:00:07]} 43. Rb6 {[%clk 0:01:11]}  Kf4 {[%clk 0:00:06]} 44. Rxa6 {[%clk 0:01:10]}  g5 {[%clk 0:00:06]} 45. Rxc6 {[%clk 0:01:11]}  Kxe4 {[%clk 0:00:06]} 46. a6 {[%clk 0:01:10]}  Rf8 {[%clk 0:00:03]} 47. b5 {[%clk 0:01:10]}  g4 {[%clk 0:00:02]} 48. a7 {[%clk 0:01:09]}  Kf5 {[%clk 0:00:01]} 49. b6 {[%clk 0:01:09]}  g3 {[%clk 0:00:02]} 50. b7 {[%clk 0:01:07]} 1-0


[Site "https://www.chess.com"]

[Event "Titled Tuesday Blitz April 18 Late 2023"]
[White "Peng, Li Min"]
[Black "Martinez Alcantara, Jose Eduardo"]
[WhiteFideId "14112620"]
[BlackFideId "3805662"]
[WhiteElo "2436"]
[BlackElo "2711"]
[Result "1/2-1/2"]
[Round "03"]
[TimeControl "180+2"]
[Date "2023.04.18"]
[WhiteClock "0:00:33"]
[BlackClock "0:00:22"]

1. e4 {[%clk 0:02:54]}  c5 {[%clk 0:02:59]} 2. Nc3 {[%clk 0:02:53]}  Nc6 {[%clk 0:02:57]} 3. Bb5 {[%clk 0:02:52]}  Nd4 {[%clk 0:02:55]} 4. Nf3 {[%clk 0:02:50]}  Nxb5 {[%clk 0:02:55]} 5. Nxb5 {[%clk 0:02:51]}  d6 {[%clk 0:02:55]} 6. d4 {[%clk 0:02:50]}  a6 {[%clk 0:02:55]} 7. Nc3 {[%clk 0:02:50]}  cxd4 {[%clk 0:02:56]} 8. Qxd4 {[%clk 0:02:51]}  Nf6 {[%clk 0:02:51]} 9. O-O {[%clk 0:02:47]}  e5 {[%clk 0:02:48]} 10. Qd3 {[%clk 0:02:46]}  h6 {[%clk 0:02:45]} 11. Nd2 {[%clk 0:02:47]}  Be6 {[%clk 0:02:44]} 12. Nc4 {[%clk 0:02:46]}  Rc8 {[%clk 0:02:38]} 13. Ne3 {[%clk 0:02:45]}  Qc7 {[%clk 0:02:34]} 14. Rd1 {[%clk 0:02:39]}  Be7 {[%clk 0:02:30]} 15. a4 {[%clk 0:02:38]}  O-O {[%clk 0:02:29]} 16. a5 {[%clk 0:02:24]}  Rfd8 {[%clk 0:02:28]} 17. Bd2 {[%clk 0:02:10]}  Bc4 {[%clk 0:02:09]} 18. Nxc4 {[%clk 0:02:10]}  Qxc4 {[%clk 0:02:10]} 19. Qxc4 {[%clk 0:01:42]}  Rxc4 {[%clk 0:02:11]} 20. f3 {[%clk 0:01:42]}  d5 {[%clk 0:01:33]} 21. exd5 {[%clk 0:01:43]}  Nxd5 {[%clk 0:01:28]} 22. Nxd5 {[%clk 0:01:44]}  Rxd5 {[%clk 0:01:28]} 23. Bc3 {[%clk 0:01:44]}  Bc5+ {[%clk 0:01:17]} 24. Kf1 {[%clk 0:01:43]}  Bd4 {[%clk 0:01:12]} 25. Ra3 {[%clk 0:01:20]}  Rb5 {[%clk 0:00:58]} 26. Rb3 {[%clk 0:01:10]}  Bxc3 {[%clk 0:00:55]} 27. Rxb5 {[%clk 0:01:10]}  axb5 {[%clk 0:00:55]} 28. bxc3 {[%clk 0:01:11]}  Rxc3 {[%clk 0:00:46]} 29. Rd8+ {[%clk 0:01:02]}  Kh7 {[%clk 0:00:45]} 30. Rd5 {[%clk 0:01:03]}  b4 {[%clk 0:00:46]} 31. Rb5 {[%clk 0:01:01]}  Rxc2 {[%clk 0:00:45]} 32. Rxb4 {[%clk 0:00:59]}  Ra2 {[%clk 0:00:41]} 33. Rxb7 {[%clk 0:00:57]}  f6 {[%clk 0:00:40]} 34. Ra7 {[%clk 0:00:56]}  h5 {[%clk 0:00:40]} 35. h4 {[%clk 0:00:47]}  Kg6 {[%clk 0:00:40]} 36. a6 {[%clk 0:00:44]}  Kf5 {[%clk 0:00:35]} 37. Rxg7 {[%clk 0:00:43]}  Rxa6 {[%clk 0:00:36]} 38. Kg1 {[%clk 0:00:37]}  Ra4 {[%clk 0:00:29]} 39. g3 {[%clk 0:00:36]}  e4 {[%clk 0:00:28]} 40. fxe4+ {[%clk 0:00:35]}  Rxe4 {[%clk 0:00:25]} 41. Kg2 {[%clk 0:00:34]}  Re2+ {[%clk 0:00:22]} 42. Kh3 {[%clk 0:00:33]}  Re5 {[%clk 0:00:21]} 43. Rg8 {[%clk 0:00:32]}  Rc5 {[%clk 0:00:21]} 44. Rg7 {[%clk 0:00:32]}  Re5 {[%clk 0:00:21]} 45. Rg8 {[%clk 0:00:32]}  Rc5 {[%clk 0:00:21]} 46. Rg7 {[%clk 0:00:33]}  Re5 {[%clk 0:00:22]} 1/2-1/2


[Site "https://www.chess.com"]

[Event "Titled Tuesday Blitz April 18 Late 2023"]
[White "Bluebaum, Matthias"]
[Black "Yuan, Qingyu"]
[WhiteFideId "24651516"]
[BlackFideId "8609772"]
[WhiteElo "2638"]
[BlackElo "2359"]
[Result "0-1"]
[Round "03"]
[TimeControl "180+2"]
[Date "2023.04.18"]
[WhiteClock "0:00:14"]
[BlackClock "0:00:10"]

1. d4 {[%clk 0:03:00]}  d5 {[%clk 0:02:56]} 2. c4 {[%clk 0:03:01]}  e6 {[%clk 0:02:56]} 3. Nc3 {[%clk 0:03:01]}  Be7 {[%clk 0:02:57]} 4. cxd5 {[%clk 0:03:02]}  exd5 {[%clk 0:02:58]} 5. Bf4 {[%clk 0:03:02]}  c6 {[%clk 0:02:58]} 6. e3 {[%clk 0:03:03]}  Bf5 {[%clk 0:02:59]} 7. f3 {[%clk 0:03:03]}  Bd6 {[%clk 0:02:30]} 8. Nge2 {[%clk 0:02:50]}  Nf6 {[%clk 0:02:23]} 9. g4 {[%clk 0:02:49]}  Bg6 {[%clk 0:02:19]} 10. h4 {[%clk 0:02:49]}  h5 {[%clk 0:02:18]} 11. g5 {[%clk 0:02:49]}  Ng8 {[%clk 0:02:16]} 12. Bh3 {[%clk 0:02:42]}  Ne7 {[%clk 0:02:16]} 13. Qd2 {[%clk 0:02:39]}  Na6 {[%clk 0:02:12]} 14. O-O-O {[%clk 0:02:35]}  O-O {[%clk 0:02:00]} 15. e4 {[%clk 0:02:35]}  b5 {[%clk 0:01:45]} 16. Ng3 {[%clk 0:02:12]}  Bxf4 {[%clk 0:01:26]} 17. Qxf4 {[%clk 0:02:13]}  Qa5 {[%clk 0:01:14]} 18. Kb1 {[%clk 0:01:58]}  b4 {[%clk 0:01:10]} 19. Nce2 {[%clk 0:01:58]}  c5 {[%clk 0:00:43]} 20. dxc5 {[%clk 0:01:47]}  Nxc5 {[%clk 0:00:42]} 21. Nd4 {[%clk 0:01:35]}  dxe4 {[%clk 0:00:40]} 22. fxe4 {[%clk 0:01:35]}  Nd5 {[%clk 0:00:33]} 23. Qf3 {[%clk 0:01:21]}  Nc3+ {[%clk 0:00:33]} 24. bxc3 {[%clk 0:00:57]}  bxc3 {[%clk 0:00:34]} 25. Kc2 {[%clk 0:00:28]}  Qxa2+ {[%clk 0:00:28]} 26. Kxc3 {[%clk 0:00:28]}  Rab8 {[%clk 0:00:19]} 27. Rd2 {[%clk 0:00:15]}  Rb3+ {[%clk 0:00:18]} 28. Kc4 {[%clk 0:00:14]}  Qa4+ {[%clk 0:00:14]} 29. Kxc5 {[%clk 0:00:14]}  Qb4+ {[%clk 0:00:11]} 30. Kd5 {[%clk 0:00:14]}  Rd8+ {[%clk 0:00:10]} 31. Ke5 {[%clk 0:00:14]}  Qd6# {[%clk 0:00:10]} 0-1


[Site "https://www.chess.com"]

[Event "Titled Tuesday Blitz April 18 Late 2023"]
[White "Rasulov, Vugar"]
[Black "Oganian, Miran"]
[WhiteFideId "13402390"]
[BlackFideId "4122488"]
[WhiteElo "2509"]
[BlackElo "2323"]
[Result "1-0"]
[Round "03"]
[TimeControl "180+2"]
[Date "2023.04.18"]
[WhiteClock "0:01:37"]
[BlackClock "0:01:36"]

1. e4 {[%clk 0:03:00]}  e6 {[%clk 0:02:59]} 2. Qe2 {[%clk 0:02:59]}  c5 {[%clk 0:02:58]} 3. Nf3 {[%clk 0:02:56]}  g6 {[%clk 0:02:58]} 4. h4 {[%clk 0:02:51]}  h5 {[%clk 0:02:57]} 5. d3 {[%clk 0:02:49]}  Bg7 {[%clk 0:02:58]} 6. Nc3 {[%clk 0:02:49]}  Nc6 {[%clk 0:02:57]} 7. g3 {[%clk 0:02:43]}  a6 {[%clk 0:02:57]} 8. Bg2 {[%clk 0:02:43]}  Nge7 {[%clk 0:02:57]} 9. O-O {[%clk 0:02:43]}  b5 {[%clk 0:02:57]} 10. e5 {[%clk 0:02:38]}  Bb7 {[%clk 0:02:57]} 11. Ne4 {[%clk 0:02:37]}  O-O {[%clk 0:02:52]} 12. Nxc5 {[%clk 0:02:34]}  Qc7 {[%clk 0:02:50]} 13. Nxb7 {[%clk 0:02:27]}  Qxb7 {[%clk 0:02:50]} 14. d4 {[%clk 0:02:28]}  Rac8 {[%clk 0:02:44]} 15. c3 {[%clk 0:02:28]}  b4 {[%clk 0:02:42]} 16. Ng5 {[%clk 0:02:25]}  Qc7 {[%clk 0:02:37]} 17. Ne4 {[%clk 0:02:22]}  bxc3 {[%clk 0:02:33]} 18. bxc3 {[%clk 0:02:22]}  Na5 {[%clk 0:02:32]} 19. Ba3 {[%clk 0:02:14]}  Nd5 {[%clk 0:02:12]} 20. Bxf8 {[%clk 0:02:11]}  Bxf8 {[%clk 0:02:13]} 21. Rac1 {[%clk 0:02:02]}  Nc4 {[%clk 0:02:12]} 22. Ng5 {[%clk 0:01:57]}  d6 {[%clk 0:02:01]} 23. Bxd5 {[%clk 0:01:50]}  exd5 {[%clk 0:01:59]} 24. e6 {[%clk 0:01:51]}  f6 {[%clk 0:01:57]} 25. Nh3 {[%clk 0:01:43]}  Bh6 {[%clk 0:01:56]} 26. Rcd1 {[%clk 0:01:40]}  Re8 {[%clk 0:01:45]} 27. Qf3 {[%clk 0:01:39]}  Nd2 {[%clk 0:01:39]} 28. Qxf6 {[%clk 0:01:37]}  Nxf1 {[%clk 0:01:39]} 29. Qxg6+ {[%clk 0:01:37]}  Qg7 {[%clk 0:01:36]} 30. Qxe8+ {[%clk 0:01:37]} 1-0


[Site "https://www.chess.com"]

[Event "Titled Tuesday Blitz April 18 Late 2023"]
[White "Thomforde-Toates, Noah"]
[Black "Moussard, Jules"]
[WhiteFideId "30951992"]
[BlackFideId "642908"]
[WhiteElo "2745"]
[BlackElo "2610"]
[Result "1/2-1/2"]
[Round "03"]
[TimeControl "180+2"]
[Date "2023.04.18"]
[WhiteClock "0:00:41"]
[BlackClock "0:00:16"]

1. e4 {[%clk 0:03:00]}  c5 {[%clk 0:02:57]} 2. Nf3 {[%clk 0:02:45]}  d6 {[%clk 0:02:56]} 3. Nc3 {[%clk 0:02:45]}  Nf6 {[%clk 0:02:56]} 4. e5 {[%clk 0:02:44]}  dxe5 {[%clk 0:02:57]} 5. Nxe5 {[%clk 0:02:45]}  a6 {[%clk 0:02:57]} 6. a4 {[%clk 0:02:44]}  Be6 {[%clk 0:02:52]} 7. Qf3 {[%clk 0:02:39]}  Nbd7 {[%clk 0:02:52]} 8. Nxd7 {[%clk 0:02:26]}  Qxd7 {[%clk 0:02:51]} 9. Be2 {[%clk 0:02:21]}  Bg4 {[%clk 0:02:47]} 10. Qe3 {[%clk 0:02:20]}  Bxe2 {[%clk 0:02:47]} 11. Qxe2 {[%clk 0:02:21]}  e6 {[%clk 0:02:47]} 12. O-O {[%clk 0:02:21]}  Be7 {[%clk 0:02:45]} 13. d3 {[%clk 0:02:21]}  O-O {[%clk 0:02:45]} 14. Bf4 {[%clk 0:02:21]}  Rac8 {[%clk 0:02:39]} 15. a5 {[%clk 0:02:18]}  Nd5 {[%clk 0:02:36]} 16. Be5 {[%clk 0:02:16]}  Nxc3 {[%clk 0:02:33]} 17. Bxc3 {[%clk 0:02:16]}  Rfe8 {[%clk 0:02:31]} 18. Qg4 {[%clk 0:02:12]}  Bf8 {[%clk 0:02:31]} 19. Rfe1 {[%clk 0:02:11]}  Qc6 {[%clk 0:01:54]} 20. Re3 {[%clk 0:02:04]}  f5 {[%clk 0:01:51]} 21. Qg5 {[%clk 0:02:02]}  Qd7 {[%clk 0:01:44]} 22. Rae1 {[%clk 0:02:01]}  Qf7 {[%clk 0:01:43]} 23. Qf4 {[%clk 0:01:57]}  Rc6 {[%clk 0:01:41]} 24. h3 {[%clk 0:01:53]}  Bd6 {[%clk 0:01:39]} 25. Qc4 {[%clk 0:01:51]}  Bc7 {[%clk 0:01:38]} 26. Be5 {[%clk 0:01:46]}  Bxa5 {[%clk 0:01:37]} 27. c3 {[%clk 0:01:44]}  Bd8 {[%clk 0:01:34]} 28. f4 {[%clk 0:01:40]}  h6 {[%clk 0:01:29]} 29. Kh2 {[%clk 0:01:39]}  Kh7 {[%clk 0:01:25]} 30. g4 {[%clk 0:01:37]}  b5 {[%clk 0:01:17]} 31. Qa2 {[%clk 0:01:36]}  c4 {[%clk 0:01:17]} 32. d4 {[%clk 0:01:34]}  Bh4 {[%clk 0:01:05]} 33. R1e2 {[%clk 0:01:30]}  Bf6 {[%clk 0:00:57]} 34. Qb1 {[%clk 0:01:28]}  g6 {[%clk 0:00:52]} 35. d5 {[%clk 0:01:23]}  exd5 {[%clk 0:00:49]} 36. gxf5 {[%clk 0:01:22]}  Bxe5 {[%clk 0:00:49]} 37. Rxe5 {[%clk 0:01:20]}  Rxe5 {[%clk 0:00:48]} 38. Rxe5 {[%clk 0:01:20]}  gxf5 {[%clk 0:00:33]} 39. Qe1 {[%clk 0:01:17]}  Rc7 {[%clk 0:00:31]} 40. Qh4 {[%clk 0:01:11]}  Qg6 {[%clk 0:00:31]} 41. Re7+ {[%clk 0:01:03]}  Rxe7 {[%clk 0:00:30]} 42. Qxe7+ {[%clk 0:01:04]}  Qg7 {[%clk 0:00:31]} 43. Qe6 {[%clk 0:01:02]}  Qf8 {[%clk 0:00:15]} 44. Qxd5 {[%clk 0:00:57]}  Qf6 {[%clk 0:00:14]} 45. Qd7+ {[%clk 0:00:56]}  Kg6 {[%clk 0:00:14]} 46. Qe8+ {[%clk 0:00:57]}  Kg7 {[%clk 0:00:14]} 47. Qd7+ {[%clk 0:00:56]}  Kf8 {[%clk 0:00:15]} 48. Qc8+ {[%clk 0:00:56]}  Kf7 {[%clk 0:00:15]} 49. Qd7+ {[%clk 0:00:56]}  Kg6 {[%clk 0:00:16]} 50. Qe8+ {[%clk 0:00:56]}  Qf7 {[%clk 0:00:16]} 51. Qc6+ {[%clk 0:00:56]}  Kg7 {[%clk 0:00:15]} 52. Qxa6 {[%clk 0:00:52]}  Qd5 {[%clk 0:00:16]} 53. Qa7+ {[%clk 0:00:51]}  Kg6 {[%clk 0:00:16]} 54. Qb6+ {[%clk 0:00:51]}  Kh5 {[%clk 0:00:16]} 55. Qe3 {[%clk 0:00:50]}  Qd3 {[%clk 0:00:15]} 56. Qe8+ {[%clk 0:00:47]}  Kh4 {[%clk 0:00:14]} 57. Qe7+ {[%clk 0:00:48]}  Kh5 {[%clk 0:00:14]} 58. Qf7+ {[%clk 0:00:48]}  Kh4 {[%clk 0:00:14]} 59. Qf6+ {[%clk 0:00:48]}  Kh5 {[%clk 0:00:15]} 60. Qf7+ {[%clk 0:00:45]}  Kh4 {[%clk 0:00:16]} 61. Qf6+ {[%clk 0:00:45]}  Kh5 {[%clk 0:00:16]} 62. Qf7+ {[%clk 0:00:41]} 1/2-1/2


[Site "https://www.chess.com"]

[Event "Titled Tuesday Blitz April 18 Late 2023"]
[White "Riff, Vincent"]
[Black "Terry, Renato"]
[WhiteFideId "617776"]
[BlackFideId "3803457"]
[WhiteElo "2369"]
[BlackElo "2575"]
[Result "0-1"]
[Round "03"]
[TimeControl "180+2"]
[Date "2023.04.18"]
[WhiteClock "0:00:30"]
[BlackClock "0:00:23"]

1. e4 {[%clk 0:02:55]}  g6 {[%clk 0:02:57]} 2. Nf3 {[%clk 0:02:55]}  Bg7 {[%clk 0:02:58]} 3. d4 {[%clk 0:02:55]}  d6 {[%clk 0:02:58]} 4. Be2 {[%clk 0:02:54]}  Nf6 {[%clk 0:02:55]} 5. Nbd2 {[%clk 0:02:54]}  Nc6 {[%clk 0:02:55]} 6. c3 {[%clk 0:02:54]}  e5 {[%clk 0:02:55]} 7. dxe5 {[%clk 0:02:54]}  dxe5 {[%clk 0:02:54]} 8. O-O {[%clk 0:02:54]}  O-O {[%clk 0:02:55]} 9. Qc2 {[%clk 0:02:54]}  Nh5 {[%clk 0:02:55]} 10. Re1 {[%clk 0:02:53]}  Nf4 {[%clk 0:02:48]} 11. Bf1 {[%clk 0:02:53]}  Be6 {[%clk 0:02:48]} 12. Nc4 {[%clk 0:02:52]}  h6 {[%clk 0:02:44]} 13. Be3 {[%clk 0:02:45]}  g5 {[%clk 0:02:39]} 14. Rad1 {[%clk 0:02:37]}  Qf6 {[%clk 0:02:35]} 15. Bxf4 {[%clk 0:02:31]}  gxf4 {[%clk 0:02:20]} 16. Rd5 {[%clk 0:02:18]}  Rfe8 {[%clk 0:02:07]} 17. Rb5 {[%clk 0:01:59]}  Bc8 {[%clk 0:01:32]} 18. Rd1 {[%clk 0:01:58]}  a6 {[%clk 0:01:32]} 19. Rbd5 {[%clk 0:01:58]}  Be6 {[%clk 0:01:31]} 20. b3 {[%clk 0:01:39]}  Bxd5 {[%clk 0:01:24]} 21. exd5 {[%clk 0:01:35]}  b5 {[%clk 0:01:12]} 22. dxc6 {[%clk 0:01:30]}  bxc4 {[%clk 0:01:12]} 23. Qe4 {[%clk 0:01:30]}  cxb3 {[%clk 0:01:12]} 24. axb3 {[%clk 0:01:30]}  Rad8 {[%clk 0:01:08]} 25. Re1 {[%clk 0:01:26]}  Re6 {[%clk 0:01:05]} 26. Bxa6 {[%clk 0:01:20]}  Rxc6 {[%clk 0:01:03]} 27. Bc4 {[%clk 0:01:20]}  Rcd6 {[%clk 0:00:59]} 28. h4 {[%clk 0:01:17]}  Rd1 {[%clk 0:00:59]} 29. Rxd1 {[%clk 0:01:17]}  Rxd1+ {[%clk 0:00:58]} 30. Kh2 {[%clk 0:01:17]}  Rd8 {[%clk 0:00:56]} 31. b4 {[%clk 0:01:12]}  Kf8 {[%clk 0:00:54]} 32. h5 {[%clk 0:01:09]}  Qe7 {[%clk 0:00:48]} 33. Bb3 {[%clk 0:00:55]}  Bf6 {[%clk 0:00:47]} 34. Kh3 {[%clk 0:00:45]}  Kg7 {[%clk 0:00:44]} 35. Bc2 {[%clk 0:00:38]}  Kf8 {[%clk 0:00:44]} 36. Bb3 {[%clk 0:00:37]}  Qd7+ {[%clk 0:00:31]} 37. Kh2 {[%clk 0:00:37]}  Qd3 {[%clk 0:00:32]} 38. Qc6 {[%clk 0:00:36]}  Kg7 {[%clk 0:00:31]} 39. Qxc7 {[%clk 0:00:36]}  Rd7 {[%clk 0:00:32]} 40. Qc8 {[%clk 0:00:33]}  e4 {[%clk 0:00:28]} 41. Nd4 {[%clk 0:00:33]}  Rxd4 {[%clk 0:00:28]} 42. Bxf7 {[%clk 0:00:31]}  Rd8 {[%clk 0:00:23]} 43. Qf5 {[%clk 0:00:29]}  Kxf7 {[%clk 0:00:23]} 44. Qg6+ {[%clk 0:00:29]}  Ke7 {[%clk 0:00:23]} 45. Qh7+ {[%clk 0:00:30]}  Kd6 {[%clk 0:00:22]} 46. Qxh6 {[%clk 0:00:30]}  Qxc3 {[%clk 0:00:23]} 0-1


[Site "https://www.chess.com"]